{"text_format":"1","workbook":"xlsx","n_sheets":2,"sheets":["Pasiūlymas","Subtiekėjai"],"not_rendered":{"charts":0,"images":0,"macros":1,"external_links":0,"defined_names":0,"comments":0,"pivot_tables":0},"unopened":[],"bounds":{"document_bytes":16777216,"sheet_cells":100000,"rows_first":2000,"rows_last":500,"rows_between":2000,"halvings":0,"cell_chars":16384,"cell_head_chars":4096},"cells_cut":0,"cells_raw":0,"read":"whole","date_system":"1900"}

{"sheet":"Pasiūlymas","index":0,"n_rows":542,"n_cols":13,"rows_kept":542,"cut":false,"hidden":false,"merged":[[28,1,28,7],[157,1,157,7],[440,1,440,7],[495,1,495,7],[9,0,9,1],[9,2,9,4],[10,0,10,1],[10,2,10,4],[11,0,11,1],[11,2,11,4],[12,0,12,1],[12,2,12,4],[13,0,13,1],[13,2,13,4],[14,0,14,1],[14,2,14,4],[15,0,15,1],[15,2,15,4],[16,0,16,1],[16,2,16,4],[17,0,17,1],[17,2,17,4],[25,0,25,4],[18,0,18,1],[18,2,18,4],[19,0,19,1],[19,2,19,4],[22,0,22,5]]}
["Organizacija, kuriai teikiamas pasiūlymas:",null,"VŠĮ Kauno klinikinė ligoninė"]
[]
[null,"PASIŪLYMAS"]
[null,"Instrumentai artroskopinėms, ortopedinėms traumatologinėms operacijoms"]
[]
["Data:","2020.08.25"]
["Nr.:",825]
["Vieta:","Klaipėda"]
[]
["Tiekėjo pavadinimas / Ūkio subjektų grupės nariai",null,"UAB OSTECA"]
["Tiekėjo kodas (-ai)",null,300871049]
["Tiekėjo adresas (-ai)",null,"Danės g. 47, Klaipėda"]
["Tiekėjo PVM mokėtojo kodas (-ai)",null,"LT100003238211"]
["Tiekėjo / Ūkio subjektų grupės atsakingo partnerio sąskaitos numeris, banko pavadinimas ir banko kodas (-ai)"]
["Asmens atsakingo už pasiūlymą vardas, pavardė",null,"Odeta Raklevičienė"]
["Asmens atsakingo už pasiūlymą telefono numeris, el. pašto adresas",null,"865211038; 846400002"]
["Tiekėjo / Ūkio subjektų grupės, laimėjimo atveju, pasirašančio sutartį asmens vardas, pavardė, pareigos",null,"Direktorius Arvydas Klovas"]
["Tiekėjo / Ūkio subjektų grupės, laimėjimo atveju, už sutarties vykdymą atsakingo asmens vardas, pavardė, telefono numeris, elektroninio pašto adresas",null,"Projektų vadovė Odeta Raklevičienė"]
["Tiekėjo / Ūkio subjektų grupės kolegialaus priežiūros organo (Stebėtojų tarybos) ir (ar) kolegialaus valdymo organo (Valdybos) narių sąrašas (jei sudaryta)"]
[]
[]
["Tiekėjo patvirtinimai:\t\t\t\t\t"]
["1. Šiuo pasiūlymu pažymime, kad sutinkame su visomis pirkimo sąlygomis, nustatytomis:\n1.1. viešojo pirkimo dokumentuose;\n1.2. kituose pirkimo dokumentuose (jų paaiškinimuose, papildymuose).\n2. Pasiūlymas galioja iki termino, nustatyto pirkimo dokumentuose."]
[]
["Tiekėjo siūloma kaina:"]
["* Tais atvejais, kai pagal galiojančius teisės aktus tiekėjui nereikia mokėti PVM, teikėjas privalo su pasiūlymu pateikti laisvos formos raštą dėl PVM netaikymo pagrindo.\t"]
[]
["Nr.","Pavadinimas","Kiekis","Mato vienetas","Kaina be PVM, Eur","Suma be PVM, Eur","Siūlomi produktai ir jo parametrai, gamintojas, produkto kodas, katalogo psl. nuo nuoroda į siūlomą produktą","Siūlomo produkto parametrai",null,null,"","",""]
["1.","INSTRUMENTAI KELIO KRYŽMINIŲ RAIŠČIŲ OPERACIJOMS"]
["1.1.","Blauzdiklio užpakalinių raiščių dešinės pusės alkūninis nukreipiklis",1,"vnt",null,{"$f":"IF(ISBLANK(E30),\"\", PRODUCT(C30,E30))","v":""},null,null,null,""]
["1.1.1.","Nukreipiklis, kurio pakrypimą galima valdyti ne siauresnėse ribose kaip nuo 50o iki 65o"]
["1.1.2.","Turi turėti lazerines arba lygiavertes atžymas ir dantuką distaliniame gale."]
["1.1.3.","Distalinis galas turi būti ovalo formos, pilnaviduris.",null,null,null,null,null,null,null,""]
["1.1.4.","Instrumentas skirtas įstatyti į nukreipiklio rankeną.",null,null,null,null,null,null,null,null,null,""]
["1.2.","Blauzdiklio užpakalinių raiščių kairės pusės alkūninis nukreipiklis",1,"vnt",null,{"$f":"IF(ISBLANK(E35),\"\", PRODUCT(C35,E35))","v":""},null,null,null,null,null,""]
["1.2.1.","Nukreipiklis, kurio pakrypimą galima valdyti ne siauresnėse ribose kaip nuo 50o iki 65o",null,null,null,null,null,null,null,"","",""]
["1.2.2.","Turi turėti lazerines arba lygiavertes atžymas ir dantuką distaliniame gale.",null,null,null,null,null,null,null,"","",""]
["1.2.3.","Distalinis galas turi būti ovalo formos, pilnaviduris.",null,null,null,null,null,null,null,"","",""]
["1.2.4.","Instrumentas skirtas įstatyti į nukreipiklio rankeną."]
["1.3.","Gręžimo nukreipiklio rankena",1,"vnt",null,{"$f":"IF(ISBLANK(E40),\"\", PRODUCT(C40,E40))","v":""}]
["1.3.1.","Rankena, į kurią turi statytis alkūninis nukreipiklis ir gręžimo kaniulė, kurie prie rankenos turi tvirtintis fiksavimo mechanizmais.",null,null,null,null,null,null,null,""]
["1.4.","Gręžimokaniulė nukreipikliui",1,"vnt",null,{"$f":"IF(ISBLANK(E42),\"\", PRODUCT(C42,E42))","v":""}]
["1.4.1.","Kaniulė turi tikti nukreipiklio rankenai",null,null,null,null,null,null,null,null,null,""]
["1.4.2.","Gale turėti dantukus",null,null,null,null,null,null,null,"",null,""]
["1.4.3.","Tikti 3,5 mm (± 0,1) diametro grąžtams ir vieloms",null,null,null,null,null,null,null,null,null,""]
["1.4.4.","Retrogradiniam gręžimui"]
["1.5.","Gręžimokaniulė nukreipikliui",1,"vnt",null,{"$f":"IF(ISBLANK(E47),\"\", PRODUCT(C47,E47))","v":""},null,null,null,"","",""]
["1.5.1.","Kaniulė turi tikti nukreipiklio rankenai",null,null,null,null,null,null,null,"","",""]
["1.5.2.","Gale turėti dantukus",null,null,null,null,null,null,null,"","",""]
["1.5.3.","Tikti 2,4 mm (± 0,1) diametro grąžtams ir vieloms"]
["1.6.","Gręžimokaniulė nukreipikliui",1,"vnt",null,{"$f":"IF(ISBLANK(E51),\"\", PRODUCT(C51,E51))","v":""}]
["1.6.1.","Kaniulė turi tikti nukreipiklio rankenai"]
["1.6.2.","Gale turėti dantukus"]
["1.6.3.","Tikti 3,0 mm (± 0,1) diametro grąžtams ir vieloms"]
["1.7.","Gręžimokaniulė nukreipikliui",1,"vnt",null,{"$f":"IF(ISBLANK(E55),\"\", PRODUCT(C55,E55))","v":""}]
["1.7.1.","Kaniulė turi tikti nukreipiklio rankenai"]
["1.7.2.","Gale turėti dantukus"]
["1.7.3.","Tikti 3,5 mm (± 0,1) diametro grąžtams ir vieloms"]
["1.8.","Gręžimo nukreipiklis skirtas menisko šaknies plyšimams",1,"vnt",null,{"$f":"IF(ISBLANK(E59),\"\", PRODUCT(C59,E59))","v":""}]
["1.8.1.","Nukreipiklis, kurio pakrypimą galima valdyti ne siauresnėse ribose kaip nuo 70o iki 100o"]
["1.8.2.","Turi turėti lazerines arba lygiavertes atžymas."]
["1.8.3.","Instrumentas skirtas įstatyti į nukreipiklio rankeną."]
["1.9.","Gręžimo nukreipiklis skirtas menisko šaknies plyšimams",1,"vnt",null,{"$f":"IF(ISBLANK(E63),\"\", PRODUCT(C63,E63))","v":""}]
["1.9.1.","Tiesus"]
["1.9.2.","Turi turėti lazerines arba lygiavertes atžymas ir dantuką distaliniame gale."]
["1.10.","Instrumentas minkštųjų audinių paėmimui (striperis)",2,"vnt",null,{"$f":"IF(ISBLANK(E66),\"\", PRODUCT(C66,E66))","v":""}]
["1.10.1.","5 mm (± 0,2) vidinio diametro"]
["1.10.2.","≥ 300 mm darbinio ilgio"]
["1.10.3.","Atviru galu"]
["1.10.4.","Sugraduotas kas 5 mm iki ≥ 200 mm"]
["1.11.","Chondrinis kirtiklis",1,"vnt",null,{"$f":"IF(ISBLANK(E71),\"\", PRODUCT(C71,E71))","v":""}]
["1.11.1.","Mažas chondrinis kirtiklis, darbinė dalis lenkta 20o (± 5o)"]
["1.12.","Kaltukas tunelio grioveliui",2,"vnt",null,{"$f":"IF(ISBLANK(E73),\"\", PRODUCT(C73,E73))","v":""}]
["1.12.1.","Kaltukas skirtas transplantanto kanalo praplatinimui"]
["1.13.","Kanaliuotas atroskopinis grąžtas, 10,5 mm",2,"vnt",null,{"$f":"IF(ISBLANK(E75),\"\", PRODUCT(C75,E75))","v":""}]
["1.13.1.","Kanaliuotas grąžtas 10,5 mm kanalui"]
["1.13.2.","Sugraduotas kas 5 mm ne mažiau nei iki 115 mm."]
["1.14.","Kanaliuotas atroskopinis grąžtas, 7 mm",2,"vnt",null,{"$f":"IF(ISBLANK(E78),\"\", PRODUCT(C78,E78))","v":""}]
["1.14.1.","Kanaliuotas grąžtas 7 mm kanalui"]
["1.14.2.","Sugraduotas kas 5 mm ne mažiau nei iki 115 mm."]
["1.15.","Kanaliuotas atroskopinis grąžtas, 7,5 mm",2,"vnt",null,{"$f":"IF(ISBLANK(E81),\"\", PRODUCT(C81,E81))","v":""}]
["1.15.1.","Kanaliuotas grąžtas 7,5 mm kanalui"]
["1.15.2.","Sugraduotas kas 5 mm ne mažiau nei iki 115 mm."]
["1.16.","Kanaliuotas atroskopinis grąžtas, 8 mm",2,"vnt",null,{"$f":"IF(ISBLANK(E84),\"\", PRODUCT(C84,E84))","v":""}]
["1.16.1.","Kanaliuotas grąžtas 8 mm kanalui"]
["1.16.2.","Sugraduotas kas 5 mm ne mažiau nei iki 115 mm."]
["1.17.","Kanaliuotas atroskopinis grąžtas, 8,5 mm",2,"vnt",null,{"$f":"IF(ISBLANK(E87),\"\", PRODUCT(C87,E87))","v":""}]
["1.17.1.","Kanaliuotas grąžtas 8,5 mm kanalui"]
["1.17.2.","Sugraduotas kas 5 mm ne mažiau nei iki 115 mm."]
["1.18.","Kanaliuotas atroskopinis grąžtas, 9 mm",2,"vnt",null,{"$f":"IF(ISBLANK(E90),\"\", PRODUCT(C90,E90))","v":""}]
["1.18.1.","Kanaliuotas grąžtas 9 mm kanalui"]
["1.18.2.","Sugraduotas kas 5 mm ne mažiau nei iki 115 mm."]
["1.19.","Kanaliuotas atroskopinis grąžtas, 9,5 mm",2,"vnt",null,{"$f":"IF(ISBLANK(E93),\"\", PRODUCT(C93,E93))","v":""}]
["1.19.1.","Kanaliuotas grąžtas 9,5 mm kanalui"]
["1.19.2.","Sugraduotas kas 5 mm ne mažiau nei iki 115 mm."]
["1.20.","PKR transportalinis nukreipiklis šlaunikauliui",2,"vnt",null,{"$f":"IF(ISBLANK(E96),\"\", PRODUCT(C96,E96))","v":""}]
["1.20.1.","Nukreipiklis skirtas vielos/grąžto įvedimui į šlaunikaulį"]
["1.20.2.","6 mm (± 0,1) vidinio diametro"]
["1.20.3.","Ofsetinis"]
["1.20.4.","Su gradacija iki ≥ 100 mm"]
["1.21.","PKR transportalinis nukreipiklis šlaunikauliui",2,"vnt",null,{"$f":"IF(ISBLANK(E101),\"\", PRODUCT(C101,E101))","v":""}]
["1.21.1.","Nukreipiklis skirtas vielos/grąžto įvedimui į šlaunikaulį"]
["1.21.2.","7 mm (± 0,1) vidinio diametro"]
["1.21.3.","Ofsetinis"]
["1.21.4.","Su gradacija iki ≥ 100 mm"]
["1.22.","PKR žymens blauzdikaulio alkūninis nukreipiklis",2,"vnt",null,{"$f":"IF(ISBLANK(E106),\"\", PRODUCT(C106,E106))","v":""}]
["1.22.1.","Nukreipiklis, kurio pakrypimą galima valdyti ne siauresnėse ribose kaip nuo 50o iki 75o"]
["1.22.2.","Turi turėti lazerines arba lygiavertes atžymas ir dantuką distaliniame gale."]
["1.22.3.","Instrumentas skirtas įstatyti į nukreipiklio rankeną."]
["1.23.","Siuvimo instrumentas meniskams",2,"vnt",null,{"$f":"IF(ISBLANK(E110),\"\", PRODUCT(C110,E110))","v":""}]
["1.23.1.","Daukartinio naudojimo instrumentas skirtas kelio meniskui siūti, vienu įvedimu, nenaudojant papildomų priemonių, suimantis audinį ir jį ištraukiantis, nepaleisdamas siūlo viso proceso metu"]
["1.23.2.","Instrumento galiukas 5o (± 1o) lenktas į viršų, žemo profilio, ne daugiau nei 3,2 mm aukščio ir ne daugiau nei 4,5 mm pločio."]
["1.23.3.","Darbinės dalies ilgis ne daugiau 12,6 mm, užrakinamas, su siūlo prispaudimo mechanizmu."]
["1.23.4.","Ne daugiau nei dviejų valdymo rankenų - viena adatai, kita čiupikliui"]
["1.23.5.","Instrumentas tinkamas darbui su 2-0, 0 dydžio bei juostiniais siūlais."]
["1.23.6.","Komplekte su 5 vnt. vienkartinių, sterilių nitinolinių arba lygiaverčių adatų su išpjova šone instrumento išbandymui."]
["1.24.","Transplantanto laikiklis",1,"vnt",null,{"$f":"IF(ISBLANK(E117),\"\", PRODUCT(C117,E117))","v":""}]
["1.24.1.","Tvirtinamas pasirinktinai slankiojančiame blokelyje arba stacionariame blokelyje (būtinos abi galimybės)."]
["1.24.2.","Tinkamas tvirtinti pasirinktinai transplantato endosagą arba siūlą be mazgo (būtinos abi galimybės)."]
["1.25.","Šlaunikaulio užpakalinių raiščių alkūninis nukreipiklis",1,"vnt",null,{"$f":"IF(ISBLANK(E120),\"\", PRODUCT(C120,E120))","v":""}]
["1.25.1.","Nukreipiklis, kurio pakrypimą galima valdyti ne siauresnėse ribose kaip nuo 45o iki 75o"]
["1.25.2.","Turi turėti lazerines arba lygiavertes atžymas ir dantuką distaliniame gale."]
["1.25.3.","Distalinis galas turi būti ovalo formos, pilnaviduris."]
["1.25.4.","Instrumentas skirtas įstatyti į nukreipiklio rankeną."]
["1.26.","PKR raiščių rekonstrukcijai skirtų instrumentų sterilizavimo ir laikymo dėžė",2,"vnt",null,{"$f":"IF(ISBLANK(E125),\"\", PRODUCT(C125,E125))","v":""}]
["1.26.1.","Su laikikliais PKR rekonstrukcijos instrumentams"]
["1.27.","Transplantanto laikiklis-ištempiklis su tempimo jėgos matuokliu",1,"vnt",null,{"$f":"IF(ISBLANK(E127),\"\", PRODUCT(C127,E127))","v":""}]
["1.27.1.","Tvirtinamas pasirinktinai slankiojančiame blokelyje arba stacionariame blokelyje (būtinos abi galimybės)."]
["1.27.2.","Tinkamas tvirtinti pasirinktinai transplantato endosagą arba siūlą be mazgo (būtinos abi galimybės)."]
["1.27.3.","Su tempimo matuokliu"]
["1.28.","Transplantato ruošimo lenta",1,"vnt",null,{"$f":"IF(ISBLANK(E131),\"\", PRODUCT(C131,E131))","v":""}]
["1.28.1.","Dviejų transplantato ruošimo vietų, kurių kiekviena susideda iš stacionaraus (fiksuotos padėties) ir paslankaus (slankiojančio išilginiu lentos bėgeliu) blokelių, skirtų transplantato laikiklių tvirtinimui"]
["1.28.2.","Su gerai matoma skale nuo 0 iki 30 cm (ne trumpesne) skirta ruošiamo trasplantato ilgiui matuoti"]
["1.28.3.","Su nuimamos konstrukcijos (keičiama) transplantato pjaustymo lentele bei atskira pjaustomo transplantato ilgio matavimo skale nuo 0 iki 33 cm (ne trumpesne)."]
["1.29.","Transplantato storio ir ilgio nustatymo blokelis",2,"vnt",null,{"$f":"IF(ISBLANK(E135),\"\", PRODUCT(C135,E135))","v":""}]
["1.29.1.","Matavimo priemonė su lygiagrečiomis įpjovomis bei ertmėmis, skirta matuoti tranplantato diametrus nuo 4,5 mm iki 12,0 mm, didėjant kas 0,5 mm (matavimo ribos ne siauresnės už nurodytas) bei ilgį iki  ≥ 180 mm"]
["1.30.","Tranplantatų ruošimo sistemos laikymo ir sterilizavimo konteineris",1,"vnt",null,{"$f":"IF(ISBLANK(E137),\"\", PRODUCT(C137,E137))","v":""}]
["1.30.1.","Su laikikliais transplantato ruošimo lentai ir jos priedams"]
["1.31.","Kandiklis artroskopinėms operacijoms \"punch\" tipo",6,"vnt",null,{"$f":"IF(ISBLANK(E139),\"\", PRODUCT(C139,E139))","v":""}]
["1.31.1.","Artroskopinis minkštujų audinių kandiklis"]
["1.31.2.","Instrumento diametras 3,4 mm (± 0,15 mm)"]
["1.31.3.","Instrumentas tiesaus profilio, o darbinės dalies žiotys lenktos į viršų 15o (±1o)"]
["1.31.4.","Dabinės dalies iškandimo plotas turi būti ne mažesnis nei 3,5 mm;"]
["1.31.5.","Instrumento rankena ergonomiška, su dviem vieno piršto kilpomis."]
["1.32.","Audinių suėmėjas",2,"vnt",null,{"$f":"IF(ISBLANK(E145),\"\", PRODUCT(C145,E145))","v":""}]
["1.32.1.","Minkštųjų audinių suėmėjas smailėjančia darbine dalimi"]
["1.32.2.","Darbinės dalies sukandimo galas dantytas, stiebas 3,4 mm (± 0,1 mm) diametro, tiesus."]
["1.32.3.","Darbinė rankena ergonomiška su dviem vieno pišto kilpomis, užsirakinama."]
["1.33.","Artroskopinės žirklės siūlų nukirpimui",2,"vnt",null,{"$f":"IF(ISBLANK(E149),\"\", PRODUCT(C149,E149))","v":""}]
["1.33.1.","Instrumento stiebo skersmuo 3,4 mm (± 0,1 mm), tiesus"]
["1.33.2.","Darbinė dalis tiesi"]
["1.33.3.","Darbinė rankena su dviem vieno pišto kilpomis"]
["1.33.4.","Darbinės dalies galas tiesus."]
[null,null,null,null,"Suma be PVM",{"$f":"IF((COUNT(C30:C153)<>COUNT(F30:F153)),\"\", SUM(F30:F153))","v":""},{"$f":"IF((COUNT(C30:C153)<>COUNT(F30:F153)),\"Neužpildytos visų objektų kainos\", \"\")","v":"Neužpildytos visų objektų kainos"}]
[null,null,null,null,"PVM suma"]
[null,null,null,null,"Suma su PVM",{"$f":"IF(ISBLANK(F155), \"\", SUM(F154:F155))","v":""}]
[]
["2.","INSTRUMENTAI ĮVAIRIOMS ARTROSKOPINĖMS, ORTOPEDINĖMS IR TRAUMATOLOGINĮMS OPERACIJOMS"]
["2.1.","Skalperio kotelis",10,"vnt.",6,{"$f":"IF(ISBLANK(E159),\"\", PRODUCT(C159,E159))","v":60},"gamintojas PRO-MED (Vokietija) ref. Nr. 12.0103; psl. 1"]
["2.1.1.","Nr.3 arba lygiavertis",null,null,null,null,null,"nr. 3"]
["2.2.","Skalperio kotelis",20,"vnt.",11,{"$f":"IF(ISBLANK(E161),\"\", PRODUCT(C161,E161))","v":220},"gamintojas PRO-MED (Vokietija) ref. Nr.12.0193; psl. 2"]
["2.2.1.","Nr.3 arba lygiavertis",null,null,null,null,null,"nr. 3"]
["2.2.2.","Darbinė dalis su įpjovomis arba lygiavertis",null,null,null,null,null,"darbinė dalis su įpjovomis"]
["2.3.","Skalperio kotelis",20,"vnt.",6,{"$f":"IF(ISBLANK(E164),\"\", PRODUCT(C164,E164))","v":120},"gamintojas PRO-MED (Vokietija) ref. Nr.12.0101; psl. 1"]
["2.3.1.","Nr.3 arba lygiavertis",null,null,null,null,null,"nr. 3"]
["2.3.2.","Darbinė dalis sugraduota milimetrais arba lygiavertis",null,null,null,null,null,"darbinė dalis sugraduota milimetrais"]
["2.4.","Chirurginis peilis",5,"vnt.",85,{"$f":"IF(ISBLANK(E167),\"\", PRODUCT(C167,E167))","v":425},"gamintojas PRO-MED (Vokietija) ref. Nr.12.0520; psl. 3"]
["2.4.1.","Liston tipo arba lygiavertis",null,null,null,null,null,"Liston tipo"]
["2.4.2.","Ilgis 20 cm (± 0,5 cm)",null,null,null,null,null,"ilgis 20 cm"]
["2.5.","Medicininis pincetas",10,"vnt.",7,{"$f":"IF(ISBLANK(E170),\"\", PRODUCT(C170,E170))","v":70},"gamintojas PRO-MED (Vokietija) ref. Nr.14.0123; psl. 4"]
["2.5.1.","Tiesus, ilgis 14,5 cm (± 0,5 cm)",null,null,null,null,null,"tiesus,ilgis 14,5 cm"]
["2.6.","Chirurginis pincetas",10,"vnt.",8,{"$f":"IF(ISBLANK(E172),\"\", PRODUCT(C172,E172))","v":80},"gamintojas PRO-MED (Vokietija) ref. Nr.14.0623; psl. 5"]
["2.6.1.","Ilgis 14,5 cm, su priekyje dviem dantukais (± 0,5 cm)",null,null,null,null,null,"ilgis 14,5 cm, su 2 dantukais priekyje"]
["2.7.","Minkštųjų audinių pincetas",5,"vnt.",13,{"$f":"IF(ISBLANK(E174),\"\", PRODUCT(C174,E174))","v":65},"gamintojas PRO-MED (Vokietija) ref. Nr.14.0624; psl. 5"]
["2.7.1.","Ilgis 15 cm, su priekyje dviem dantukais (± 0,5 cm)",null,null,null,null,null,"ilgis 15 cm, su priekyje 2 dantukais"]
["2.8.","Minkštųjų audinių pincetas",15,"vnt.",8,{"$f":"IF(ISBLANK(E176),\"\", PRODUCT(C176,E176))","v":120},"gamintojas PRO-MED (Vokietija) ref. Nr.14.0040; psl. 6"]
["2.8.1.","Adson tipo arba lygiavertis",null,null,null,null,null,"Adson tipo"]
["2.8.2.","Ilgis 12 cm (± 0,5 cm)",null,null,null,null,null,"ilgis 12 cm"]
["2.9.","Pincetas",15,"vnt.",10,{"$f":"IF(ISBLANK(E179),\"\", PRODUCT(C179,E179))","v":150},"gamintojas PRO-MED (Vokietija) ref. Nr.14.0540; psl. 7"]
["2.9.1.","Adson tipo arba lygiavertis",null,null,null,null,null,"Adson tipo"]
["2.9.2.","Ilgis 12 cm, su priekyje dviem dantukais (± 0,5 cm)",null,null,null,null,null,"Ilgis 12 cm, su priekyje 2 dantukais"]
["2.10.","Pincetas",15,"vnt.",26,{"$f":"IF(ISBLANK(E182),\"\", PRODUCT(C182,E182))","v":390},"gamintojas PRO-MED (Vokietija) ref. Nr.14.0821, psl.8 "]
["2.10.1.","Gerald tipo arba lygiavertis",null,null,null,null,null,"Gerald tipo"]
["2.10.2.","Ilgis 18 cm lenktas (± 0,5 cm)",null,null,null,null,null,"Ilgis 18 cm, lenktas"]
["2.11.","Pincetas",15,"vnt.",25,{"$f":"IF(ISBLANK(E185),\"\", PRODUCT(C185,E185))","v":375},"gamintojas PRO-MED (Vokietija) ref. Nr.14.0820; psl. 11"]
["2.11.1.","Gerald tipo arba lygiavertis",null,null,null,null,null,"Gerald tipo"]
["2.11.2.","Ilgis 17 cm, su priekyje dviem dantukais, tiesus (± 0,5 cm)",null,null,null,null,null,"Ilgis 18 cm, tiesus"]
["2.12.","Laikiklis",20,"vnt.",14,{"$f":"IF(ISBLANK(E188),\"\", PRODUCT(C188,E188))","v":280},"gamintojas PRO-MED (Vokietija) ref. Nr.15.0120; psl. 9"]
["2.12.1.","Halsted-Mosquito tipo arba lygiavertis",null,null,null,null,null,"Halsted-Mosquito tipo"]
["2.12.2.","Ilgis 12,5 cm, tiesus (± 0,5 cm)",null,null,null,null,null,"ilgis 12,5 cm, tiesus"]
["2.13.","Laikiklis",20,"vnt.",15,{"$f":"IF(ISBLANK(E191),\"\", PRODUCT(C191,E191))","v":300},"gamintojas PRO-MED (Vokietija) ref. Nr.15.0121; psl. 9"]
["2.13.1.","Halsted-Mosquito tipo arba lygiavertis",null,null,null,null,null,"Halsted-Mosquito tipo"]
["2.13.2.","Ilgis 12,5 cm, lenktas (± 1 cm)",null,null,null,null,null,"Ilgis 12,5 cm, lenktas"]
["2.14.","Žnyplės",25,"vnt.",14,{"$f":"IF(ISBLANK(E194),\"\", PRODUCT(C194,E194))","v":350},"gamintojas PRO-MED (Vokietija) ref. Nr.15.0201; psl. 10"]
["2.14.1.","Kelly Artery tipo arba lygiaverčios",null,null,null,null,null,"Kelly Artery tipo"]
["2.14.2.","Ilgis 14 cm, lenktas (± 0,5 cm)",null,null,null,null,null,"Ilgis 14 cm, lenktas"]
["2.15.","Žnyplės",5,"vnt.",17,{"$f":"IF(ISBLANK(E197),\"\", PRODUCT(C197,E197))","v":85},"gamintojas PRO-MED (Vokietija) ref. Nr.15.0251; psl. 11"]
["2.15.1.","Crile-Rankin tipo arba lygiaverčios",null,null,null,null,null,"Crile-Rankin"]
["2.15.2.","Ilgis 16 cm, lenktas (± 0,5 cm)",null,null,null,null,null,"ilgis 16 cm, lenktas"]
["2.16.","Žnyplės",50,"vnt.",26,{"$f":"IF(ISBLANK(E200),\"\", PRODUCT(C200,E200))","v":1300},"gamintojas PRO-MED (Vokietija) ref. Nr.15.0625; psl. 12"]
["2.16.1.","Rochester Ochsner tipo arba lygiaverčios",null,null,null,null,null,"Rochester Ochsner"]
["2.16.2.","Ilgis 20 cm, lenktos su priekyje dviem dantukais 1x2 (± 0,5 cm)",null,null,null,null,null,"ilgis 20 cm, lenktos priekyje su dantukais 1x2"]
["2.17.","Žnyplės",10,"vnt.",23,{"$f":"IF(ISBLANK(E203),\"\", PRODUCT(C203,E203))","v":230},"gamintojas PRO-MED (Vokietija) ref. Nr.15.0770; psl. 13"]
["2.17.1.","Gemini Artery & Ligature tipo arba lygiaverčios",null,null,null,null,null,"Gemini arterijų ir ligatūros"]
["2.17.2.","Ilgis 13 cm (± 0,5 cm)",null,null,null,null,null,"ilgis 13 cm"]
["2.18.","Žnyplės",50,"vnt.",14,{"$f":"IF(ISBLANK(E206),\"\", PRODUCT(C206,E206))","v":700},"gamintojas PRO-MED (Vokietija) ref. Nr.15.0120; psl. 9"]
["2.18.1.","Mosquito Artery tipo arba lygiaverčios",null,null,null,null,null,"Mosquito arterijų spaustukas"]
["2.18.2.","Ilgis 12 cm (± 0,5 cm) tiesios",null,null,null,null,null,"ilgis 12 cm"]
["2.19.","Žnyplės",50,"vnt.",14,{"$f":"IF(ISBLANK(E209),\"\", PRODUCT(C209,E209))","v":700},"gamintojas PRO-MED (Vokietija) ref. Nr.15.0211; psl. 14"]
["2.19.1.","Crile Artery tipo arba lygiaverčios",null,null,null,null,null,"Crile arterijų spaustukas"]
["2.19.2.","Ilgis 14 cm (± 0,5 cm) lenktos",null,null,null,null,null,"Ilgis 14 cm, lenktas"]
["2.20.","Žnyplės",50,"vnt.",23,{"$f":"IF(ISBLANK(E212),\"\", PRODUCT(C212,E212))","v":1150},"gamintojas PRO-MED (Vokietija) ref. Nr.15.0623; psl. 12"]
["2.20.1.","Rochester - Orchesner Artery tipo arba lygiaverčios",null,null,null,null,null,"Rochester Ochsner"]
["2.20.2.","Ilgis 18 cm (± 0,5 cm) lenktos",null,null,null,null,null,"Ilgis 18 cm, lenktas"]
["2.21.","Kaulinis laikiklis",20,"vnt.",14,{"$f":"IF(ISBLANK(E215),\"\", PRODUCT(C215,E215))","v":280},"gamintojas PRO-MED (Vokietija) ref. Nr.16.0100; psl. 15"]
["2.21.1.","Backhaus Towel tipo arba lygiavertis",null,null,null,null,null,"Backhaus towel tipo"]
["2.21.2.","Ilgis 9 cm (± 0,5 cm)",null,null,null,null,null,"ilgis 9 cm"]
["2.22.","Retraktorius",10,"vnt.",31,{"$f":"IF(ISBLANK(E218),\"\", PRODUCT(C218,E218))","v":310},"gamintojas PRO-MED (Vokietija) ref. Nr.33.1921; psl. 16"]
["2.22.1.","Hook tipo arba lygiavertis",null,null,null,null,null,"Hook "]
["2.22.2.","Ilgis 16 cm (± 0,5 cm) smailus",null,null,null,null,null,"ilgis 16 cm, smailus"]
["2.23.","Retraktorius",10,"vnt.",35,{"$f":"IF(ISBLANK(E221),\"\", PRODUCT(C221,E221))","v":350},"gamintojas PRO-MED (Vokietija) ref. Nr.17.0731; psl. 17"]
["2.23.1.","Volkmann tipo arba lygiavertis",null,null,null,null,null,"Volkman"]
["2.23.2.","Ilgis 21,5 cm (± 0,5 cm) bukas",null,null,null,null,null,"ilgis 21,5 cm, bukas"]
["2.24.","Retraktorius",15,"vnt.",20,{"$f":"IF(ISBLANK(E224),\"\", PRODUCT(C224,E224))","v":300},"gamintojas PRO-MED (Vokietija) ref. Nr.17.0771; psl. 18"]
["2.24.1.","Kocher tipo arba lygiavertis",null,null,null,null,null,"Kocher"]
["2.24.2.","Ilgis 22 cm (± 0,5 cm)  užaštrintas",null,null,null,null,null,"ilgis 22 cm, užaštrintas"]
["2.25.","Retraktorius",15,"vnt.",42,{"$f":"IF(ISBLANK(E227),\"\", PRODUCT(C227,E227))","v":630},"gamintojas PRO-MED (Vokietija) ref. Nr.17.0761; psl. 18"]
["2.25.1.","Kocher tipo arba lygiavertis",null,null,null,null,null,"Kocher"]
["2.25.2.","Ilgis 22 cm (± 0,5 cm) bukas",null,null,null,null,null,"ilgis 22 cm, bukas"]
["2.26.","Retraktorius",10,"vnt.",40,{"$f":"IF(ISBLANK(E230),\"\", PRODUCT(C230,E230))","v":400},"gamintojas PRO-MED (Vokietija) ref. Nr.17.0570; psl. 20"]
["2.26.1.","Cushing tipo arba lygiavertis",null,null,null,null,null,"Cushing "]
["2.26.2.","Ilgis 20 cm (± 2 cm)",null,null,null,null,null,"ilgis 20 cm"]
["2.27.","Retraktorius",10,"vnt.",38,{"$f":"IF(ISBLANK(E233),\"\", PRODUCT(C233,E233))","v":380},"gamintojas PRO-MED (Vokietija) ref. Nr.27.1211; psl. 21"]
["2.27.1.","Adson/Cone tipo arba lygiavertis",null,null,null,null,null,"Adson tipo"]
["2.27.2.","Ilgis 20 cm (± 0,5 cm) bukas",null,null,null,null,null,"ilgis 20 cm"]
["2.28.","Retraktorius",5,"vnt.",176,{"$f":"IF(ISBLANK(E236),\"\", PRODUCT(C236,E236))","v":880},"gamintojas PRO-MED (Vokietija) ref. Nr.17.5330; psl. 22"]
["2.28.1.","Anderson-Adson tipo  arba lygiavertis 4x4",null,null,null,null,null,"Anderson - Adson 4 x 4"]
["2.28.2.","Ilgis 19,5 cm (± 0,5 cm) užaštrintas",null,null,null,null,null,"ilgis 20 cm, užaštrintas"]
["2.29.","Laikiklis",10,"vnt.",26,{"$f":"IF(ISBLANK(E239),\"\", PRODUCT(C239,E239))","v":260},"gamintojas PRO-MED (Vokietija) ref. Nr.16.0400; psl. 23"]
["2.29.1.","Foerster tipo arba lygiavertis",null,null,null,null,null,"Foerster"]
["2.29.2.","Ilgis 18 cm (± 0,5 cm) tiesus",null,null,null,null,null,"Ilgis 18 cm"]
["2.29.3.","Darbinė dalis su kiaurymėmis",null,null,null,null,null,"Darbinė dalis su kiaurymėmis"]
["2.30.","Operacinės žirklės",25,"vnt.",19,{"$f":"IF(ISBLANK(E243),\"\", PRODUCT(C243,E243))","v":475},"gamintojas PRO-MED (Vokietija) ref. Nr.13.0335; psl. 24"]
["2.30.1.","Standard tipo arba lygiaverčios",null,null,null,null,null,"Standard tipo"]
["2.30.2.","Ilgis 14,5 cm (± 0,5 cm) lenktos",null,null,null,null,null,"Ilgis 14,5 cm"]
["2.30.3.","Darbiniai galai smailūs",null,null,null,null,null,"Darbiniai galai smailūs"]
["2.31.","Žirklės",25,"vnt.",39,{"$f":"IF(ISBLANK(E247),\"\", PRODUCT(C247,E247))","v":975},"gamintojas PRO-MED (Vokietija) ref. Nr.13.0623; psl. 25"]
["2.31.1.","Metzenbaum-Nelson tipo arba lygiaverčios",null,null,null,null,null,"Metzenbaum "]
["2.31.2.","Ilgis 18 cm (± 0,5 cm) lenktos",null,null,null,null,null,"Ilgis 18 cm"]
["2.31.3.","Darbiniai galai vienas aštrus kitas bukas",null,null,null,null,null,"Darbiniai galai vienas aštrus kitas bukas"]
["2.32.","Žirklės",25,"vnt.",48,{"$f":"IF(ISBLANK(E251),\"\", PRODUCT(C251,E251))","v":1200},"gamintojas PRO-MED (Vokietija) ref. Nr.13.0561; psl. 26"]
["2.32.1.","Wertheim tipo arba lygiaverčios",null,null,null,null,null,"Wertheim"]
["2.32.2.","Ilgis 14 cm (± 0,5 cm) lenktos",null,null,null,null,null,"ilgis 14,5 cm"]
["2.33.","Adatkotis",50,"vnt.",23,{"$f":"IF(ISBLANK(E254),\"\", PRODUCT(C254,E254))","v":1150},"gamintojas PRO-MED (Vokietija) ref. Nr.18.1080, psl. 27"]
["2.33.1.","Mayo-Hegar tipo arba lygiavertis",null,null,null,null,null,"Mayo-Hegar"]
["2.33.2.","Ilgis 16 cm (± 0,5 cm)",null,null,null,null,null,"ilgis 16 cm"]
["2.34.","Adatkotis",50,"vnt.",28,{"$f":"IF(ISBLANK(E257),\"\", PRODUCT(C257,E257))","v":1400},"gamintojas PRO-MED (Vokietija) ref. Nr.18.1084; psl. 27"]
["2.34.1.","Mayo-Hegar tipo arba lygiavertis",null,null,null,null,null,"Mayo-Hegar"]
["2.34.2.","Ilgis 20 cm (± 0,5 cm)",null,null,null,null,null,"ilgis 20 cm"]
["2.35.","Žnyplės",10,"vnt.",25,{"$f":"IF(ISBLANK(E260),\"\", PRODUCT(C260,E260))","v":250},"gamintojas PRO-MED (Vokietija) ref. Nr.48.0011; psl. 28"]
["2.35.1.","Allis tipo arba lygiaverčios",null,null,null,null,null,"Allis"]
["2.35.2.","Ilgis  15 cm",null,null,null,null,null,"ilgis 15 cm, su priekyje 2 dantukais"]
["2.35.3.","Darbinė dalis su dantukais 5:6",null,null,null,null,null,"darbinė dalis su dantukais 5:6"]
["2.36.","Plaktukas",10,"vnt.",121,{"$f":"IF(ISBLANK(E264),\"\", PRODUCT(C264,E264))","v":1210},"gamintojas PRO-MED (Vokietija) ref. Nr.23.1371; psl. 29"]
["2.36.1.","Svoris 500 g.",null,null,null,null,null,"Svoris 500 g"]
["2.37.","Kaulinis laikiklis",5,"vnt.",135,{"$f":"IF(ISBLANK(E266),\"\", PRODUCT(C266,E266))","v":675},"gamintojas PRO-MED (Vokietija) ref. Nr.23.2220; psl. 30"]
["2.38.","Kaulinis laikiklis",10,"vnt.",148,{"$f":"IF(ISBLANK(E267),\"\", PRODUCT(C267,E267))","v":1480},"gamintojas PRO-MED (Vokietija) ref. Nr. 23.2210; psl. 30"]
["2.38.1.","Semb tipo arba lygiavertis",null,null,null,null,null,"Semb"]
["2.38.2.","Ilgis 20 cm (± 1 cm)",null,null,null,null,null,"Ilgis 20 cm"]
["2.38.3.","Darbinė dalis su dantukais",null,null,null,null,null,"Darbinė dalis su dantukais "]
["2.39.","Yla",15,"vnt.",82,{"$f":"IF(ISBLANK(E271),\"\", PRODUCT(C271,E271))","v":1230},"gamintojas PRO-MED (Vokietija) ref. Nr. 23.4997; psl. 31"]
["2.39.1.","Ilgis 14 cm (± 0,5 cm)",null,null,null,null,null,"Ilgis 14 cm"]
["2.40.","Pjūklelis",150,"vnt.",7,{"$f":"IF(ISBLANK(E273),\"\", PRODUCT(C273,E273))","v":1050},"gamintojas PRO-MED (Vokietija) ref. Nr.27.0532; psl. 32"]
["2.40.1.","Olivecrona tipo arba lygiavertis",null,null,null,null,null,"Olivecrona "]
["2.40.2.","Ilgis 50 cm (± 0,5 cm)",null,null,null,null,null,"ilgis 50 cm"]
["2.41.","Pjūklelis",150,"vnt.",7,{"$f":"IF(ISBLANK(E276),\"\", PRODUCT(C276,E276))","v":1050},"gamintojas PRO-MED (Vokietija) ref. Nr.27.0532; psl. 33"]
["2.41.1.","Gigli tipo arba lygiavertis",null,null,null,null,null,"Gigli"]
["2.41.2.","Ilgis 50 cm (± 0,5 cm)",null,null,null,null,null,"ilgis 50 cm"]
["2.42.","Gigli pjūklelio rankena",30,"vnt.",17,{"$f":"IF(ISBLANK(E279),\"\", PRODUCT(C279,E279))","v":510},"gamintojas PRO-MED (Vokietija) ref. Nr.27.0520; psl. 34"]
["2.43.","Osteotominis kaltas",5,"vnt.",62,{"$f":"IF(ISBLANK(E280),\"\", PRODUCT(C280,E280))","v":310},"gamintojas PRO-MED (Vokietija) ref. Nr.23.1590; psl. 35"]
["2.43.1.","Stille tipo arba lygiavertis",null,null,null,null,null,"Stille"]
["2.43.2.","Ilgis 20,5 cm (± 0,5 cm)",null,null,null,null,null,"ilgis 20 cm"]
["2.43.3.","Plotis 10 mm (± 0,5 mm)",null,null,null,null,null,"plotis 10 mm"]
["2.44.","Osteotominis kaltas",5,"vnt.",62,{"$f":"IF(ISBLANK(E284),\"\", PRODUCT(C284,E284))","v":310},"gamintojas PRO-MED (Vokietija) ref. Nr. 23.1591; psl. 35"]
["2.44.1.","Stille tipo arba lygiavertis",null,null,null,null,null,"Stille"]
["2.44.2.","Ilgis 20,5 cm (± 0,5 cm)",null,null,null,null,null,"ilgis 20 cm"]
["2.44.3.","Plotis 15 mm (± 0,5 mm)",null,null,null,null,null,"plotis 15 mm"]
["2.45.","Osteotominis kaltas",5,"vnt.",62,{"$f":"IF(ISBLANK(E288),\"\", PRODUCT(C288,E288))","v":310},"gamintojas PRO-MED (Vokietija) ref. Nr. 23.1592; psl. 35"]
["2.45.1.","Stille tipo arba lygiavertis",null,null,null,null,null,"Stille"]
["2.45.2.","Ilgis 20,5 cm (± 0,5 cm)",null,null,null,null,null,"ilgis 20 cm"]
["2.45.3.","Plotis 20 mm (± 0,5 mm)",null,null,null,null,null,"plotis 20 mm"]
["2.46.","Kiuretė dviguba",15,"vnt.",28,{"$f":"IF(ISBLANK(E292),\"\", PRODUCT(C292,E292))","v":420},"gamintojas PRO-MED (Vokietija) ref. Nr.23.1040; psl. 36"]
["2.46.1.","Williger tipo arba lygiavertė",null,null,null,null,null,"Williger"]
["2.46.2.","Ilgis 13,5 cm (± 0,5 cm)",null,null,null,null,null,"ilgis 13,5"]
["2.47.","Kiuretė dviguba",15,"vnt.",42,{"$f":"IF(ISBLANK(E295),\"\", PRODUCT(C295,E295))","v":630},"gamintojas PRO-MED (Vokietija) ref. Nr.23.1013; psl. 37"]
["2.47.1.","Volkmann tipo arba lygiavertė",null,null,null,null,null,"Volkmann"]
["2.47.2.","Ilgis 20 cm (± 0,5 cm)",null,null,null,null,null,"Ilgis 20 cm"]
["2.48.","Kiuretė",15,"vnt.",42,{"$f":"IF(ISBLANK(E298),\"\", PRODUCT(C298,E298))","v":630},"gamintojas PRO-MED (Vokietija) ref. Nr.23.1012; psl. 37"]
["2.48.1.","Volkmann tipo arba lygiavertė",null,null,null,null,null,"Volkmann"]
["2.48.2.","Ilgis 17 cm (± 0,5 cm)",null,null,null,null,null,"ilgis 17 cm"]
["2.49.","Kiuretė",5,"vnt.",58,{"$f":"IF(ISBLANK(E301),\"\", PRODUCT(C301,E301))","v":290},"gamintojas PRO-MED (Vokietija) ref. Nr.23.1131; psl. 38"]
["2.49.1.","Brun Bone tipo arba lygiavertė",null,null,null,null,null,"Bruns"]
["2.49.2.","Ilgis 23 cm (± 0,5 cm), tiesi",null,null,null,null,null,"ilgis 23 cm"]
["2.50.","Osteotominis kaltas",5,"vnt.",33,{"$f":"IF(ISBLANK(E304),\"\", PRODUCT(C304,E304))","v":165},"gamintojas PRO-MED (Vokietija) ref. Nr.23.1470; psl. 39"]
["2.50.1.","Ilgis 13,5 cm (± 0,5 cm)",null,null,null,null,null,"ilgis 13,5 cm"]
["2.50.2.","Plotis 8 mm (± 0,5 mm)",null,null,null,null,null,"plotis 8 mm"]
["2.51.","Osteotominis kaltas",5,"vnt.",33,{"$f":"IF(ISBLANK(E307),\"\", PRODUCT(C307,E307))","v":165},"gamintojas PRO-MED (Vokietija) ref. Nr. 23.1471; psl. 40"]
["2.51.1.","Ilgis 13,5 cm (± 0,5 cm)",null,null,null,null,null,"ilgis 13,5 cm"]
["2.51.2.","Plotis 10 mm (± 0,5 mm)",null,null,null,null,null,"plotis 10 mm"]
["2.52.","Osteotominis kaltas",5,"vnt.",33,{"$f":"IF(ISBLANK(E310),\"\", PRODUCT(C310,E310))","v":165},"gamintojas PRO-MED (Vokietija) ref. Nr.23.1472; psl. 41"]
["2.52.1.","Ilgis 13,5 cm (± 0,5 cm)",null,null,null,null,null,"ilgis 13,5 cm"]
["2.52.2.","Plotis 12 mm (± 0,5 mm)",null,null,null,null,null,"plotis 12 mm"]
["2.53.","Osteotominis kaltas",5,"vnt.",33,{"$f":"IF(ISBLANK(E313),\"\", PRODUCT(C313,E313))","v":165},"gamintojas PRO-MED (Vokietija) ref. Nr.23.1473; psl. 42"]
["2.53.1.","Ilgis 13,5 cm (± 0,5 cm)",null,null,null,null,null,"ilgis 13,5 cm"]
["2.53.2.","Plotis 14 mm (± 0,5 mm)",null,null,null,null,null,"plotis 14 mm"]
["2.54.","Osteotominis kaltas",5,"vnt.",33,{"$f":"IF(ISBLANK(E316),\"\", PRODUCT(C316,E316))","v":165},"gamintojas PRO-MED (Vokietija) ref. Nr.23.1474; psl. 42"]
["2.54.1.","Ilgis 13,5 cm (± 0,5 cm)",null,null,null,null,null,"ilgis 13,5 cm"]
["2.54.2.","Plotis 16 mm (± 0,5 mm)",null,null,null,null,null,"plotis 16 mm"]
["2.55.","Osteotominis kaltas",10,"vnt.",34,{"$f":"IF(ISBLANK(E319),\"\", PRODUCT(C319,E319))","v":340},"gamintojas PRO-MED (Vokietija) ref. Nr.23.1413; psl. 42"]
["2.55.1.","Gillies tipo arba lygiavertis",null,null,null,null,null,"Gillies tipo"]
["2.55.2.","Ilgis 14 cm (± 0,5 cm)",null,null,null,null,null,"Ilgis 13,5 cm"]
["2.55.3.","Plotis 5 mm (± 0,5 mm)",null,null,null,null,null,"Plotis 5 mm"]
["2.56.","Osteotominis kaltas",10,"vnt.",34,{"$f":"IF(ISBLANK(E323),\"\", PRODUCT(C323,E323))","v":340},"gamintojas PRO-MED (Vokietija) ref. Nr.23.1415; psl. 42"]
["2.56.1.","Gillies tipo arba lygiavertis",null,null,null,null,null,"Gillies tipo"]
["2.56.2.","Ilgis 14 cm (± 0,5 cm)",null,null,null,null,null,"Ilgis 13,5 cm"]
["2.56.3.","Plotis 7 mm (± 0,5 mm)",null,null,null,null,null,"Plotis 7 mm"]
["2.57.","Osteotominis kaltas",10,"vnt.",23,{"$f":"IF(ISBLANK(E327),\"\", PRODUCT(C327,E327))","v":230},"gamintojas PRO-MED (Vokietija) ref. Nr.33.2006; psl. 42"]
["2.57.1.","Gillies tipo arba lygiavertis",null,null,null,null,null,"Gillies tipo"]
["2.57.2.","Ilgis 14 cm (± 0,5 cm)",null,null,null,null,null,"Ilgis 13,5 cm"]
["2.57.3.","Plotis 9 mm (± 0,5 mm)",null,null,null,null,null,"Plotis 9 mm"]
["2.58.","Osteotominis kaltas",5,"vnt.",48,{"$f":"IF(ISBLANK(E331),\"\", PRODUCT(C331,E331))","v":240},"gamintojas PRO-MED (Vokietija) ref. Nr.33.1847; psl. 44"]
["2.58.1.","Cottle tipo arba lygiavertis",null,null,null,null,null,"Cottle"]
["2.58.2.","Ilgis 18 cm (± 0,5 cm)",null,null,null,null,null,"Ilgis 18 cm"]
["2.58.3.","Plotis 8 mm (± 0,5 mm)",null,null,null,null,null,"Plotis 8 mm"]
["2.59.","Osteotominis kaltas",10,"vnt.",45,{"$f":"IF(ISBLANK(E335),\"\", PRODUCT(C335,E335))","v":450},"gamintojas PRO-MED (Vokietija) ref. Nr.23.1512; psl. 45"]
["2.59.1.","Lambotte tipo arba lygiavertis",null,null,null,null,null,"Lambotte"]
["2.59.2.","Ilgis 24 cm (± 1 cm)",null,null,null,null,null,"Ilgis 25 cm"]
["2.59.3.","Plotis 15 mm (± 0,5 mm)",null,null,null,null,null,"Plotis 15 mm"]
["2.59.4.","Tiesus",null,null,null,null,null,"Tiesus"]
["2.60.","Osteotominis kaltas",10,"vnt.",45,{"$f":"IF(ISBLANK(E340),\"\", PRODUCT(C340,E340))","v":450},"gamintojas PRO-MED (Vokietija) ref. Nr.23.1513; psl. 45"]
["2.60.1.","Lambotte tipo arba lygiavertis",null,null,null,null,null,"Lambotte"]
["2.60.2.","Ilgis 24 cm (± 1 cm)",null,null,null,null,null,"Ilgis 25 cm"]
["2.60.3.","Plotis 20 mm (± 0,5 mm)",null,null,null,null,null,"Plotis 20 mm"]
["2.60.4.","Tiesus",null,null,null,null,null,"Tiesus"]
["2.61.","Osteotominis kaltas",10,"vnt.",45,{"$f":"IF(ISBLANK(E345),\"\", PRODUCT(C345,E345))","v":450},"gamintojas PRO-MED (Vokietija) ref. Nr.23.1514; psl. 45"]
["2.61.1.","Lambotte tipo arba lygiavertis",null,null,null,null,null,"Lambotte"]
["2.61.2.","Ilgis 24 cm (± 1 cm)",null,null,null,null,null,"Ilgis 25 cm"]
["2.61.3.","Plotis 25 mm (± 0,5 mm)",null,null,null,null,null,"Plotis 25 mm"]
["2.61.4.","Tiesus",null,null,null,null,null,"Tiesus"]
["2.62.","Osteotominis kaltas",10,"vnt.",62,{"$f":"IF(ISBLANK(E350),\"\", PRODUCT(C350,E350))","v":620},"gamintojas PRO-MED (Vokietija) ref. Nr.23.1581; psl. 46"]
["2.62.1.","Stille Chisel tipo arba lygiavertis",null,null,null,null,null,"Stille"]
["2.62.2.","Ilgis 20,5 cm (± 0,5 cm)",null,null,null,null,null,"Ilgis 20 cm"]
["2.62.3.","Plotis 15 mm (± 0,5 mm)",null,null,null,null,null,"Plotis 15 mm"]
["2.63.","Osteotominis kaltas",10,"vnt.",62,{"$f":"IF(ISBLANK(E354),\"\", PRODUCT(C354,E354))","v":620},"gamintojas PRO-MED (Vokietija) ref. Nr. 23.1582; psl. 46"]
["2.63.1.","Stille Chisel tipo arba lygiavertis",null,null,null,null,null,"Stille"]
["2.63.2.","Ilgis 20,5 cm (± 0,5 cm)",null,null,null,null,null,"Ilgis 20 cm"]
["2.63.3.","Plotis 20 mm (± 0,5 mm)",null,null,null,null,null,"Plotis 20 mm"]
["2.64.","Osteotominis kaltas",10,"vnt.",62,{"$f":"IF(ISBLANK(E358),\"\", PRODUCT(C358,E358))","v":620},"gamintojas PRO-MED (Vokietija) ref. Nr.23.1583; psl. 46"]
["2.64.1.","Stille Chisel tipo arba lygiavertis",null,null,null,null,null,"Stille"]
["2.64.2.","Ilgis 20,5 cm (± 0,5 cm)",null,null,null,null,null,"Ilgis 20 cm"]
["2.64.3.","Plotis 25 mm (± 0,5 mm)",null,null,null,null,null,"Plotis 25 mm"]
["2.65.","Laikiklis smulkiems kaulams",10,"vnt.",153,{"$f":"IF(ISBLANK(E362),\"\", PRODUCT(C362,E362))","v":1530},"gamintojas PRO-MED (Vokietija) ref. Nr.23.2050; psl. 48"]
["2.65.1.","Malleollar tipo arba lygiavertis",null,null,null,null,null,"Malleollar tipo"]
["2.65.2.","Ilgis 21 cm (± 0,5 cm)",null,null,null,null,null,"Ilgis 21 cm"]
["2.65.3.","Darbinė dalis 1x1 smailūs galai",null,null,null,null,null,"Darbinė dalis1x1 smailūs galai"]
["2.66.","Laikiklis",10,"vnt.",219,{"$f":"IF(ISBLANK(E366),\"\", PRODUCT(C366,E366))","v":2190},"gamintojas PRO-MED (Vokietija) ref. Nr.23.2002; psl. 48"]
["2.66.1.","Meyer Bone tipo arba lygiavertis",null,null,null,null,null,"Meyer Bone tipo"]
["2.66.2.","Ilgis 17 cm (± 0,5 cm)",null,null,null,null,null,"ilgis 17 cm"]
["2.66.3.","Darbinės dalies diametras 1,0 mm",null,null,null,null,null,"Darbinės dalies diametras 1 mm"]
["2.67.","Kauliniai laikikliai repozicijai",10,"vnt.",140,{"$f":"IF(ISBLANK(E370),\"\", PRODUCT(C370,E370))","v":1400},"gamintojas PRO-MED (Vokietija) ref. Nr.23.2040, psl. 49"]
["2.67.1.","Ilgis 14 cm (± 0,5 cm), maži lenkti",null,null,null,null,null,"ilgis 13,5 cm, mažas, lenktas"]
["2.68.","Kaulinis laikiklis",5,"vnt.",319,{"$f":"IF(ISBLANK(E372),\"\", PRODUCT(C372,E372))","v":1595},"gamintojas PRO-MED (Vokietija) ref. Nr.23.2270; psl. 50"]
["2.68.1.","Lambotte tipo arba lygiavertis",null,null,null,null,null,"Lambotte"]
["2.68.2.","Ilgis 23 cm (± 1 cm)",null,null,null,null,null,"ilgis 22 cm"]
["2.69.","Kaulinis laikiklis",10,"vnt.",319,{"$f":"IF(ISBLANK(E375),\"\", PRODUCT(C375,E375))","v":3190},"gamintojas PRO-MED (Vokietija) ref. Nr.23.2506; psl. 51"]
["2.69.1.","Gerster-Lowmann tipo arba lygiavertis",null,null,null,null,null,"Lowmann"]
["2.69.2.","Ilgis 22 cm (± 0,5 cm)",null,null,null,null,null,"ilgis 22 cm"]
["2.69.3.","Darbinė dalis su dantukais 1x2",null,null,null,null,null,"darbinė dalis su dantukais 1x2"]
["2.70.","Plokščios replės",10,"vnt.",74,{"$f":"IF(ISBLANK(E379),\"\", PRODUCT(C379,E379))","v":740},"gamintojas PRO-MED (Vokietija) ref. Nr.23.4230, psl. 52"]
["2.70.1.","Ilgis 17 cm (± 0,5 cm)",null,null,null,null,null,"Ilgis 17 cm"]
["2.71.","Plokščios replės",10,"vnt.",64,{"$f":"IF(ISBLANK(E381),\"\", PRODUCT(C381,E381))","v":640},"gamintojas PRO-MED (Vokietija) ref. Nr.23.4234; psl. 53"]
["2.71.1.","Hakstock tipo arba lygiavertės",null,null,null,null,null,"Hakstock"]
["2.71.2.","Ilgis 16 cm (± 1 cm)",null,null,null,null,null,"ilgis 16 cm"]
["2.72.","Pincetai",10,"vnt.",78,{"$f":"IF(ISBLANK(E384),\"\", PRODUCT(C384,E384))","v":780},"gamintojas PRO-MED (Vokietija) ref. Nr.14.2020; psl. 54"]
["2.72.1.","Cushing tipo arba lygiavertis",null,null,null,null,null,"Cushing "]
["2.72.2.","Ilgis 18 cm  (± 0,5 cm)",null,null,null,null,null,"Ilgis 18 cm"]
["2.72.3.","TC GOLD",null,null,null,null,null,"TC GOLD, rankenos pažymėtos"]
["2.73.","Vielos kirpimo žnyplės",10,"vnt.",603,{"$f":"IF(ISBLANK(E388),\"\", PRODUCT(C388,E388))","v":6030},"gamintojas PRO-MED (Vokietija) ref. Nr.23.4272; psl. 55"]
["2.73.1.","Ilgis 38,5 cm  (± 0,5 cm)",null,null,null,null,null,"ilgis 38 cm"]
["2.73.2.","iki 5 mm vielai",null,null,null,null,null,"iki 5 mm vielai"]
["2.73.3.","TC GOLD",null,null,null,null,null,"TC GOLD, rankenos pažymėtos"]
["2.74.","Vielos kirpimo žnyplės",10,"vnt.",704,{"$f":"IF(ISBLANK(E392),\"\", PRODUCT(C392,E392))","v":7040},"gamintojas PRO-MED (Vokietija) ref. Nr.23.4292; psl. 56"]
["2.74.1.","Ilgis 45 cm  (± 0,5 cm)",null,null,null,null,null,"Ilgis 45 cm"]
["2.74.2.","iki 6 mm vielai",null,null,null,null,null,"iki 6 mm vielai"]
["2.74.3.","TC GOLD",null,null,null,null,null,"TC GOLD, rankenos pažymėtos"]
["2.75.","Vielos žnyplės",10,"vnt.",390,{"$f":"IF(ISBLANK(E396),\"\", PRODUCT(C396,E396))","v":3900},"gamintojas PRO-MED (Vokietija) ref. Nr.23.4218; psl. 57"]
["2.75.1.","Twisting tipo arba lygiavertės",null,null,null,null,null,"Twisting lygiavertės"]
["2.75.2.","Ilgis 20 cm  (± 3 cm)",null,null,null,null,null,"ilgis 20 cm"]
["2.75.3.","TC GOLD",null,null,null,null,null,"TC GOLD, rankenos pažymėtos"]
["2.76.","Vielos žnyplės",10,"vnt.",285,{"$f":"IF(ISBLANK(E400),\"\", PRODUCT(C400,E400))","v":2850},"gamintojas PRO-MED (Vokietija) ref. Nr. 23.4217; psl. 57"]
["2.76.1.","Twisting tipo arba lygiavertės",null,null,null,null,null,"Twisting lygiavertės"]
["2.76.2.","Ilgis 18,5 cm  (± 0,5 cm)",null,null,null,null,null,"Ilgis 18 cm"]
["2.76.3.","TC GOLD",null,null,null,null,null,"TC GOLD, rankenos pažymėtos"]
["2.77.","Žirklės",5,"vnt.",70,{"$f":"IF(ISBLANK(E404),\"\", PRODUCT(C404,E404))","v":350},"gamintojas PRO-MED (Vokietija) ref. Nr.13.5202; psl. 59"]
["2.77.1.","Mayo tipo arba lygiavertės",null,null,null,null,null,"Mayo"]
["2.77.2.","Ilgis 17 cm  (± 0,5 cm), tiesios",null,null,null,null,null,"Ilgis 17 cm, tiesios"]
["2.77.3.","Darbinė dalis buka",null,null,null,null,null,"darbinė dalis buka"]
["2.77.4.","TC GOLD",null,null,null,null,null,"TC GOLD, rankenos pažymėtos"]
["2.78.","Žirklės",5,"vnt.",80,{"$f":"IF(ISBLANK(E409),\"\", PRODUCT(C409,E409))","v":400},"gamintojas PRO-MED (Vokietija) ref. Nr.13.5311; psl. 60"]
["2.78.1.","Metzenbaum tipo arba lygiavertės",null,null,null,null,null,"Metzenbaum "]
["2.78.2.","Ilgis 18 cm  (± 0,5 cm), lenktos",null,null,null,null,null,"ilgis 18 cm, lenktos"]
["2.78.3.","Darbinė dalis buka",null,null,null,null,null,"darbinė dalis buka"]
["2.78.4.","TC GOLD",null,null,null,null,null,"TC GOLD, rankenos pažymėtos"]
["2.79.","Žirklės",5,"vnt.",91,{"$f":"IF(ISBLANK(E414),\"\", PRODUCT(C414,E414))","v":455},"gamintojas PRO-MED (Vokietija) ref. Nr.13.5315; psl. 61"]
["2.79.1.","Metzenbaum-Fino tipo arba lygiavertės",null,null,null,null,null,"Metzenbaum-Fino"]
["2.79.2.","Ilgis 18 cm  (± 0,5 cm), lenktos",null,null,null,null,null,"Ilgis 18 cm, lenktos"]
["2.79.3.","Darbinė dalis buka",null,null,null,null,null,"Darbinė dalis buka"]
["2.79.4.","TC GOLD",null,null,null,null,null,"TC GOLD, rankenos pažymėtos"]
["2.80.","Žirklės",5,"vnt.",87,{"$f":"IF(ISBLANK(E419),\"\", PRODUCT(C419,E419))","v":435},"gamintojas PRO-MED (Vokietija) ref. Nr.13.5000; psl. 62"]
["2.80.1.","Iris Gum tipo arba lygiavertės",null,null,null,null,null,"Iris"]
["2.80.2.","Ilgis 11,5 cm  (± 0,5 cm), tiesios",null,null,null,null,null,"ilgis 11,5 cm, tiesios"]
["2.80.3.","TC GOLD",null,null,null,null,null,"TC GOLD, rankenos pažymėtos"]
["2.81.","Žirklės",10,"vnt.",87,{"$f":"IF(ISBLANK(E423),\"\", PRODUCT(C423,E423))","v":870},"gamintojas PRO-MED (Vokietija) ref. Nr.13.5001; psl. 62"]
["2.81.1.","Iris tipo arba lygiavertės",null,null,null,null,null,"Iris"]
["2.81.2.","Ilgis 11,5 cm  (± 0,5 cm), lenktos",null,null,null,null,null,"ilgis 11,5 cm, lenktos"]
["2.81.3.","TC GOLD",null,null,null,null,null,"TC GOLD, rankenos pažymėtos"]
["2.82.","Žirklės",10,"vnt.",128,{"$f":"IF(ISBLANK(E427),\"\", PRODUCT(C427,E427))","v":1280},"gamintojas PRO-MED (Vokietija) ref. Nr.21.0216; psl. 63"]
["2.82.1.","Lister Bandae tipo arba lygiavertės",null,null,null,null,null,"Lister "]
["2.82.2.","Ilgis 16 cm  (± 2 cm), lenktos",null,null,null,null,null,"Ilgis 16 cm, lenktos"]
["2.82.3.","TC GOLD",null,null,null,null,null,"TC GOLD, rankenos pažymėtos"]
["2.83.","Plaktukas",25,"vnt.",123,{"$f":"IF(ISBLANK(E431),\"\", PRODUCT(C431,E431))","v":3075},"gamintojas PRO-MED (Vokietija) ref. Nr.23.1380; psl. 64"]
["2.83.1.","Ombredanne tipo aba lygiavertis",null,null,null,null,null,"ombredanne tipo"]
["2.83.2.","Svoris 550 g.",null,null,null,null,null,"svoris 550 g"]
["2.83.3.","diametras 40 mm",null,null,null,null,null,"diametras 40 mm"]
["2.84.","Plaktukas",15,"vnt.",124,{"$f":"IF(ISBLANK(E435),\"\", PRODUCT(C435,E435))","v":1860},"gamintojas PRO-MED (Vokietija) ref. Nr.23.1374; psl. 65"]
["2.84.1.","Svoris 450 g",null,null,null,null,null,"svoris 450 g"]
[null,null,null,null,"Suma be PVM",{"$f":"IF((COUNT(C159:C436)<>COUNT(F159:F436)),\"\", SUM(F159:F436))","v":72310},{"$f":"IF((COUNT(C159:C436)<>COUNT(F159:F436)),\"Neužpildytos visų objektų kainos\", \"\")","v":""}]
[null,null,null,null,"PVM suma",15185.1]
[null,null,null,null,"Suma su PVM",{"$f":"IF(ISBLANK(F438), \"\", SUM(F437:F438))","v":87495.1}]
[]
["3.","PETIES SĄNARIO ARTROSKOPINIŲ INSTRUMENTŲ RINKINYS"]
["3.1.","Artroskopinis griebtuvas, darbinė dalis be skersinės ašies",1,"vnt.",1314,{"$f":"IF(ISBLANK(E442),\"\", PRODUCT(C442,E442))","v":1314},"Gamintojas Smith&Nephew (JAV); ref. kodas 72201180; psl. 66-67"]
["3.1.1.","Aštraus dantyto suėmimo",null,null,null,null,null,"Artroskopinis griebtuvas, darbinė dalis be skersinės ašies "]
["3.1.2.","Tiesus",null,null,null,null,null,"aštraus dantyto suėmimo; tiesus, rankena spalviškai pažymėta"]
["3.1.3.","Rankena spalviškai pažymėta",null,null,null,null,null,"rankena spalviškai pažymėta"]
["3.2.","Artroskopinis siūlų manipuliatorius",1,"vnt.",1449,{"$f":"IF(ISBLANK(E446),\"\", PRODUCT(C446,E446))","v":1449},"Gamintojas Smith&Nephew (JAV); ref. kodas 7209494; psl. 66-67"]
["3.2.1.","Vertikalus",null,null,null,null,null,"vertikalus"]
["3.2.2.","Darbinė dalis be ašies,  uždarytoje būsenoje sudaro netaisyklingos ovalo formos kilpą",null,null,null,null,null,"darbinė dalis be ašies,  uždarytoje būsenoje sudaro netaisyklingos ovalo formos kilpą"]
["3.2.3.","Tiesus, buku galu",null,null,null,null,null,"tiesus, buku galu"]
["3.2.4.","Vienu metu gali suimti keturis siūlus",null,null,null,null,null,"vienu metu gali suimti keturis siūlus"]
["3.2.5.","Numatytas paimtų siūlų migravimas uždarytos darbinės dalies viduje",null,null,null,null,null,"numatytas paimtų siūlų migravimas uždarytos darbinės dalies viduje"]
["3.2.6.","Rankena spalviškai pažymėta",null,null,null,null,null,"rankena spalviškai pažymėta"]
["3.3.","Artroskopinis mazgų manipuliatorius",1,"vnt.",324,{"$f":"IF(ISBLANK(E453),\"\", PRODUCT(C453,E453))","v":324},"Gamintojas Smith&Nephew (JAV); ref. kodas 72201213; psl. 68-69"]
["3.3.1.","Uždaras",null,null,null,null,null,"uždaras"]
["3.3.2.","Rankena žiedo tipo, spalviškai pažymėtina",null,null,null,null,null,"rankena žiedo tipo, spalviškai pažymėtina"]
["3.3.3.","Instrumentas skirtas mazgo nuleidimui artroskopinių operacijų metu",null,null,null,null,null,"instrumentas skirtas mazgo nuleidimui artroskopinių operacijų metu"]
["3.4.","Slankus siūlų kirpiklis",1,"vnt.",1665,{"$f":"IF(ISBLANK(E457),\"\", PRODUCT(C457,E457))","v":1665},"Gamintojas Smith&Nephew (JAV); ref. kodas 7209492; psl. 66-67"]
["3.4.1.","Darbinė dalis cilindro formos",null,null,null,null,null,"darbinė dalis cilindro formos"]
["3.5.","Artroskopinis kabliukas",1,"vnt.",135,{"$f":"IF(ISBLANK(E459),\"\", PRODUCT(C459,E459))","v":135},"Gamintojas Smith&Nephew (JAV); ref. kodas 7209145; psl. 68-69"]
["3.5.1.","Vąšelio tipo",null,null,null,null,null,"vąšelio tipo"]
["3.5.2.","Tiesus",null,null,null,null,null,"tiesus"]
["3.6.","Siūlų pravedimo-ištraukimo instrumentas",1,"vnt.",1368,{"$f":"IF(ISBLANK(E462),\"\", PRODUCT(C462,E462))","v":1368},"Gamintojas Smith&Nephew (JAV); ref. kodas 7209497; psl. 70-71"]
["3.6.1.","Darbinė dalis be skersinės ašies",null,null,null,null,null,"darbinė dalis be skersinės ašies"]
["3.6.2.","45o ±1o į dešinę",null,null,null,null,null,"45o į dešinę"]
["3.6.3.","Rankenos kaip žirklių, spalviškai pažymėtos",null,null,null,null,null,"rankenos kaip žirklių, spalviškai pažymėtos"]
["3.7.","Siūlų pravedimo-ištraukimo instrumentas",1,"vnt.",1368,{"$f":"IF(ISBLANK(E466),\"\", PRODUCT(C466,E466))","v":1368},"Gamintojas Smith&Nephew (JAV); ref. kodas 7209498; psl. 70-71"]
["3.7.1.","Darbinė dalis be skersinės ašies",null,null,null,null,null,"darbinė dalis be skersinės ašies"]
["3.7.2.","45o ±1o į kairę",null,null,null,null,null,"45o ±1o į kairę"]
["3.7.3.","Rankenos kaip žirklių, spalviškai pažymėtos",null,null,null,null,null,"rankenos kaip žirklių, spalviškai pažymėtos"]
["3.8.","Artroskopinis raspatorius",1,"vnt.",567,{"$f":"IF(ISBLANK(E470),\"\", PRODUCT(C470,E470))","v":567},"Gamintojas Smith&Nephew (JAV); ref. kodas 72201661; psl. 68-69"]
["3.8.1.","Lenktas",null,null,null,null,null,"lenktas"]
["3.8.2.","Darbinės dalies viena pusė dantyta, kita lygi, priekinis kraštas aštrus, pjaunantis",null,null,null,null,null,"darbinės dalies viena pusė dantyta, kita lygi, priekinis kraštas aštrus, pjaunantis"]
["3.9.","Artroskopinis siuvimo instrumentas, su užrakinimo mechanizmu, daugkartinio naudojimo",1,"vnt.",4410,{"$f":"IF(ISBLANK(E473),\"\", PRODUCT(C473,E473))","v":4410},"Gamintojas Smith&Nephew (JAV); ref. kodas 7220391; psl. 72-73"]
["3.9.1.","Skirtas siūlo pravedimui ir tuo pačiu instrumentu ištraukimui",null,null,null,null,null,"skirtas siūlo pravedimui ir tuo pačiu instrumentu ištraukimui"]
["3.9.2.","Praveda siūlus pro ≥ 10 mm storio audinius",null,null,null,null,null,"praveda siūlus pro ≥ 10 mm storio audinius"]
["3.9.3.","Pritaikytas peties artroskopinėms operacijoms",null,null,null,null,null,"pritaikytas peties artroskopinėms operacijoms"]
["3.9.4.","Naudojamas su vienkartinėmis adatomis",null,null,null,null,null,"naudojamas su vienkartinėmis adatomis"]
["3.10.","Adatos artroskopiniam siuvimo instrumentui",1,"vnt.",450,{"$f":"IF(ISBLANK(E478),\"\", PRODUCT(C478,E478))","v":450},"Gamintojas Smith&Nephew (JAV); ref. kodas 72203793; psl. 72-73"]
["3.10.1.","Dengtos polimeru",null,null,null,null,null,"dengtos polimeru"]
["3.10.2.","Pakuotėje 5 vnt.",null,null,null,null,null,"pakuotėje  vnt."]
["3.11.","Pomentinio raumens plėtėjas",1,"vnt.",10620,{"$f":"IF(ISBLANK(E481),\"\", PRODUCT(C481,E481))","v":10620},"Gamintojas Smith&Nephew (JAV); ref. kodas EU00064; psl. 74-75"]
["3.11.1.","Rankena su spyruokliniu mechanizmu, plėtimo reguliavimo ir fiksavimo sraigtu ir atrama pirštams",null,null,null,null,null,"rankena su spyruokliniu mechanizmu, plėtimo reguliavimo ir fiksavimo sraigtu ir atrama pirštams"]
["3.11.2.","Darbinė suimanti instrumento dalis iš dviejų plokščios formos mentelių, kurios suspaustos sudaro pailgos formos kilpą",null,null,null,null,null,"Darbinė suimanti instrumento dalis iš dviejų plokščios formos mentelių, kurios suspaustos sudaro pailgos formos kilpą"]
["3.12.","Baterinis peties laikiklis",1,"vnt.",17636,{"$f":"IF(ISBLANK(E484),\"\", PRODUCT(C484,E484))","v":17636},"Gamintojas Smith&Nephew (JAV); ref. kodas 72203299; 7210570; 7210571; psl. 76-79"]
["3.12.1.","Laikiklis veikia pneumatiniu principu",null,null,null,null,null,"laikiklis veikia pneumatiniu principu"]
["3.12.2.","Sistema valdoma baterija",null,null,null,null,null,"sistema valdoma baterija"]
["3.12.3.","Įgalina lanksčiai pozicionuoti galūnes artroskopiniu operacijų metu",null,null,null,null,null,"įgalina lanksčiai pozicionuoti galūnes artroskopiniu operacijų metu"]
["3.12.4.","Pagrindinis sistemos korpusas sudarytas iš trijų neatsijungiančių dalių, tarpusavyje rotuojančiu 360o",null,null,null,null,null,"pagrindinis sistemos korpusas sudarytas iš trijų neatsijungiančių dalių, tarpusavyje rotuojančiu 360o"]
["3.12.5.","Šarnyrinės korpuso jungtys įgalina sistemą lengvai keisti sąnario poziciją, o pneumatinis mechanizmas reikiamoje padėtyje ją greitai užfiksuoti.",null,null,null,null,null,"šarnyrinės korpuso jungtys įgalina sistemą lengvai keisti sąnario poziciją, o pneumatinis mechanizmas reikiamoje padėtyje ją greitai užfiksuoti."]
["3.12.6.","Universalus sistemos pajungimo mechanizmas leidžia ją paungti prie bet kurio standartinio operacinės stalo",null,null,null,null,null,"universalus sistemos pajungimo mechanizmas leidžia ją pajungti prie bet kurio standartinio operacinės stalo"]
["3.12.7.","Komplekte: valdymo korpusas, baterija (1 vnt.), fiksavimo strypai (2 vnt.) fiksavimo strypo pereinamosios jungtys (2 vnt.), baterijos pakrovėjas, kojinis jungiklis valdymui.",null,null,null,null,null,"komplekte: valdymo korpusas, baterija (1 vnt.), fiksavimo strypai (2 vnt.) fiksavimo strypo pereinamosios jungtys (2 vnt.), baterijos pakrovėjas, kojinis jungiklis valdymui."]
[null,null,null,null,"Suma be PVM",{"$f":"IF((COUNT(C442:C491)<>COUNT(F442:F491)),\"\", SUM(F442:F491))","v":41306},{"$f":"IF((COUNT(C442:C491)<>COUNT(F442:F491)),\"Neužpildytos visų objektų kainos\", \"\")","v":""}]
[null,null,null,null,"PVM suma",8674.26]
[null,null,null,null,"Suma su PVM",{"$f":"IF(ISBLANK(F493), \"\", SUM(F492:F493))","v":49980.26}]
[]
["4.","PRIEMONĖS SRAIGTŲ PAŠALINIMUI"]
["4.1.","Trepanas  su centratoriumi",2,"vnt.",189,{"$f":"IF(ISBLANK(E497),\"\", PRODUCT(C497,E497))","v":378},"KOENIGSEE (Vokietija), Ref.: 2.9101.35, Katalogo psl.80"]
["4.1.1.","Susidedantis iš 3 dalių (trepano, centratoriaus šerdies ir trepano fiksatoriaus prasriegtu galu su AO jungtimi)",null,null,null,null,null,"Trepanas"]
["4.1.2.","Skirtas 2,0 mm ir 4,0 mm skersmens sraigtų šalinimui.",null,null,null,null,null,"Skirtas 2,7-4,0 mm skersmens sraigtų šalinimui"]
["4.2.","Trepanas  su centratoriumi",2,"vnt.",189,{"$f":"IF(ISBLANK(E500),\"\", PRODUCT(C500,E500))","v":378},"KOENIGSEE (Vokietija), Ref.: 2.9101.15, Katalogo psl.80"]
["4.2.1.","Susidedantis iš 3 dalių (trepano, centratoriaus šerdies ir trepano fiksatoriaus prasriegtu galu su AO jungtimi)",null,null,null,null,null,"Trepanas"]
["4.2.2.","Skirtas 2,0 mm  skersmens sraigtų šalinimui.",null,null,null,null,null,"Skirtas 1,5-2,0 mm skersmens sraigtų šalinimui"]
["4.3.","Trepanas  su centratoriumi",2,"vnt.",189,{"$f":"IF(ISBLANK(E503),\"\", PRODUCT(C503,E503))","v":378},"KOENIGSEE (Vokietija), Ref.: 2.9101.15, Katalogo psl.80"]
["4.3.1.","Susidedantis iš 3 dalių (trepano, centratoriaus šerdies ir trepano fiksatoriaus prasriegtu galu su AO jungtimi)",null,null,null,null,null,"Trepanas"]
["4.3.2.","Skirtas 1,5 mm skersmens sraigtų šalinimui.",null,null,null,null,null,"Skirtas 1,5-2,0 mm skersmens sraigtų šalinimui"]
["4.4.","Trepanas  su centratoriumi",2,"vnt.",189,{"$f":"IF(ISBLANK(E506),\"\", PRODUCT(C506,E506))","v":378},"KOENIGSEE (Vokietija), Ref.: 2.9101.45, Katalogo psl.80"]
["4.4.1.","Susidedantis iš 3 dalių (trepano, centratoriaus šerdies ir trepano fiksatoriaus prasriegtu galu su AO jungtimi)",null,null,null,null,null,"Trepanas"]
["4.4.2.","Skirtas 4,5 mm skersmens sraigtų šalinimui.",null,null,null,null,null,"Skirtas 4,5-7,0 mm skersmens sraigtų šalinimui"]
["4.5.","Atsuktuvas su konusiniu sriegiu",2,"vnt.",119,{"$f":"IF(ISBLANK(E509),\"\", PRODUCT(C509,E509))","v":238},"KOENIGSEE (Vokietija), Ref.: 2.948.25A, Katalogo psl.81"]
["4.5.1.","Su AO jungtimi",null,null,null,null,null,"Atsuktuvas su konusiniu sriegiu, su AO jungtimi"]
["4.5.2.","Skirtas 2,7 mm; 3,5 mm ir 4,0 mm skersmens sraigtų ištraukimui.",null,null,null,null,null,"Skirtas 2,7 mm-4,0 mm skersmens sraigtų ištraukimui."]
["4.6.","Atsuktuvas su konusiniu sriegiu",2,"vnt.",119,{"$f":"IF(ISBLANK(E512),\"\", PRODUCT(C512,E512))","v":238},"KOENIGSEE (Vokietija), Ref.: 2.948.35A, Katalogo psl.81"]
["4.6.1.","Su AO jungtimi",null,null,null,null,null,"Atsuktuvas su konusiniu sriegiu, su AO jungtimi"]
["4.6.2.","Skirtas 4,5 mm; 5,0 mm ir6,5 mm ir 7,0 mm skersmens sraigtų ištraukimui.",null,null,null,null,null,"Skirtas 4,5 mm-7,0 mm skersmens sraigtų ištraukimui."]
["4.7.","Atsuktuvas su vidiniu reversiniu sriegiu",2,"vnt.",446,{"$f":"IF(ISBLANK(E515),\"\", PRODUCT(C515,E515))","v":892},"KOENIGSEE (Vokietija), Ref.: 2.9481.15, Katalogo psl.80"]
["4.7.1.","Su AO jungtimi",null,null,null,null,null,"Atsuktuvas su vidiniu reversiniu sriegiu, su AO jungtimi"]
["4.7.2.","Skirtas 1,5 mm skersmens sraigtų ištraukimui.",null,null,null,null,null,"Skirtas 1,5 mm-2,0 mm skersmens sraigtų ištraukimui."]
["4.8.","Atsuktuvas su vidiniu reversiniu sriegiu",2,"vnt.",446,{"$f":"IF(ISBLANK(E518),\"\", PRODUCT(C518,E518))","v":892},"KOENIGSEE (Vokietija), Ref.: 2.9481.15, Katalogo psl.80"]
["4.8.1.","Su AO jungtimi",null,null,null,null,null,"Atsuktuvas su vidiniu reversiniu sriegiu, su AO jungtimi"]
["4.8.2.","Skirtas 2,0 mm skersmens sraigtų ištraukimui.",null,null,null,null,null,"Skirtas 1,5 mm-2,0 mm skersmens sraigtų ištraukimui."]
["4.9.","Atsuktuvas su vidiniu reversiniu sriegiu",2,"vnt.",456,{"$f":"IF(ISBLANK(E521),\"\", PRODUCT(C521,E521))","v":912},"KOENIGSEE (Vokietija), Ref.: 2.9481.27, Katalogo psl.80"]
["4.9.1.","Su AO jungtimi",null,null,null,null,null,"Atsuktuvas su vidiniu reversiniu sriegiu, su AO jungtimi"]
["4.9.2.","Skirtas 3,5 mm ir 4 mm skersmens sraigtų ištraukimui.",null,null,null,null,null,"Skirtas 2,7 mm-4,0 mm skersmens sraigtų ištraukimui."]
["4.10.","Atsuktuvas su vidiniu reversiniu sriegiu",2,"vnt.",527,{"$f":"IF(ISBLANK(E524),\"\", PRODUCT(C524,E524))","v":1054},"KOENIGSEE (Vokietija), Ref.: 2.9481.45, Katalogo psl.80"]
["4.10.1.","Su AO jungtimi",null,null,null,null,null,"Atsuktuvas su vidiniu reversiniu sriegiu, su AO jungtimi"]
["4.10.2.","Skirtas 4,5 mm skersmens sraigtų ištraukimui.",null,null,null,null,null,"Skirtas 4,5 mm skersmens sraigtų ištraukimui."]
["4.11.","Gražtai",6,"vnt.",168,{"$f":"IF(ISBLANK(E527),\"\", PRODUCT(C527,E527))","v":1008},"KOENIGSEE (Vokietija), Ref.: 2.9042.030; 2.9042.050; 2.9042.070, Katalogo psl.82"]
["4.11.1.","3,0 mm, 5,0 mm, 7,0 mm skersmens.",null,null,null,null,null,"Grąžtai, 3,0 mm, 5,0 mm, 7,0 mm skersmens."]
["4.11.2.","Skirti sraigto galvučių ištraukimui",null,null,null,null,null,"Skirti sraigto galvučių ištraukimui"]
["4.12.","Rankena",2,"vnt.",174,{"$f":"IF(ISBLANK(E530),\"\", PRODUCT(C530,E530))","v":348},"KOENIGSEE (Vokietija), Ref.: 10.305.05, Katalogo psl.81"]
["4.12.1.","T formos su greitojo perjungimo AO mechanizmu",null,null,null,null,null,"T formos rankena su greitojo perjungimo AO mechanizmu"]
["4.12.2.","Ilgis 160 mm (± 5 mm)",null,null,null,null,null,"Ilgis 93 mm"]
["4.13.","Replės",2,"vnt.",429,{"$f":"IF(ISBLANK(E533),\"\", PRODUCT(C533,E533))","v":858},"KOENIGSEE (Vokietija), Ref.: 10.426.10 arba 10.426.20, Katalogo psl.83"]
["4.13.1.","Skirtos sraigtų ištraukimui",null,null,null,null,null,"Replės, skirtos sraigtų ištraukimui"]
["4.13.2.","Darbinis paviršius su dantytu grioveliu",null,null,null,null,null,"Darbinis paviršius dantytas"]
["4.13.3.","Rankenos su spyruokliniu užrakinimo mechanizmu",null,null,null,null,null,"Rankenos su spyruokliniu užrakinimo mechanizmu"]
["4.13.4.","Ilgis 205 mm (± 5 mm)",null,null,null,null,null,"Ilgis 203 mm arba 208 mm"]
["4.14.","Sterilizavimo konteineris instrumentams",2,"vnt.",863,{"$f":"IF(ISBLANK(E538),\"\", PRODUCT(C538,E538))","v":1726},"KOENIGSEE (Vokietija), Ref.: 19.510.00, Katalogo psl.84"]
["4.14.1.","Su perferuotu dangčiu 285x280x100 mm  (± 5 mm) su viduje plastikiniu dėklu.",null,null,null,null,null,"Sterilizavimo konteineris su perforuotu dangčiu ir dėklu instrumentams"]
[null,null,null,null,"Suma be PVM",{"$f":"IF((COUNT(C497:C539)<>COUNT(F497:F539)),\"\", SUM(F497:F539))","v":9678},{"$f":"IF((COUNT(C497:C539)<>COUNT(F497:F539)),\"Neužpildytos visų objektų kainos\", \"\")","v":""}]
[null,null,null,null,"PVM suma",{"$f":"F540*0.21","v":2032.3799999999999}]
[null,null,null,null,"Suma su PVM",{"$f":"IF(ISBLANK(F541), \"\", SUM(F540:F541))","v":11710.38}]

{"sheet":"Subtiekėjai","index":1,"n_rows":100,"n_cols":9,"rows_kept":100,"cut":false,"hidden":false,"merged":[[4,0,4,1],[4,2,4,4],[4,5,4,7],[4,8,4,9],[1,0,1,9],[3,0,3,1],[3,2,3,4],[3,5,3,7],[3,8,3,9],[5,0,5,1],[5,2,5,4],[5,5,5,7],[5,8,5,9],[6,0,6,1],[6,2,6,4],[6,5,6,7],[6,8,6,9],[15,1,15,6],[15,7,15,9],[7,0,7,1],[7,2,7,4],[7,5,7,7],[7,8,7,9],[8,0,8,1],[8,2,8,4],[8,5,8,7],[8,8,8,9],[10,0,10,9],[12,0,12,9],[14,1,14,6],[14,7,14,9],[31,0,31,3],[31,4,31,9],[21,0,21,9],[23,0,23,9],[16,1,16,6],[16,7,16,9],[17,1,17,6],[17,7,17,9],[18,1,18,6],[18,7,18,9],[19,1,19,6],[19,7,19,9],[24,0,24,9],[25,0,25,9],[28,0,28,3],[28,4,28,9]]}
[]
["Sutarties vykdymui numatome pasitelkti šiuos subtiekėjus / subteikėjus / subrangovus:"]
[]
["Pavadinimas",null,"Kodas, adresas",null,null,"Perduodama veikla\t",null,null,"Perduodamos veiklos dalis nuo visos pirkimo sutarties "]
[]
[]
[]
[]
[]
[]
["Pildyti tuomet, jei pirkimo sutarties vykdymui bus pasitelkti subtiekėjai (subteikėjai). Jeigu tiekėjas nenurodo subtiekėjų (subteikėjų), laikoma, kad vykdant pirkimo sutartį jų nebus pasitelkiama. \n"]
[]
["Kartu su pasiūlymu pateikiami šie dokumentai:"]
[]
["Nr.","Dokumento pavadinimas\n",null,null,null,null,null,"Dokumentas yra konfidencialus? Taip/Ne"]
["1.","Katalogas",null,null,null,null,null,"Taip"]
["2.","Gamintojų dokumentai",null,null,null,null,null,"Taip"]
["3.","Jungtinė pažyma",null,null,null,null,null,"Taip "]
["4.","Kvalifikaciniai dokumentai",null,null,null,null,null,"Taip"]
["5.","EBVPD",null,null,null,null,null,"Taip"]
[]
["Pasiūlyme nurodyta Prekės kaina, išskyrus jos sudedamąsias dalis, subtiekėjai, taip pat kita informacija, kuri teisės aktų nustatyta tvarka turi būti skelbiama arba kitokiu būdu viešai prieinama visuomenei, nėra laikoma konfidencialia informacija. Konfidencialią informaciją sudaro, visų pirma, komercinė (gamybinė) paslaptis ir konfidencialieji pasiūlymų aspektai. Informacija, kurią viešai skelbti įpareigoja Lietuvos Respublikos įstatymai, negali būti tiekėjo nurodoma kaip konfidenciali, todėl, tiekėjui nurodžius tokią informaciją kaip konfidencialią, perkančioji organizacija turi teisę ją skelbti. Jei tiekėjas nenurodo konfidencialios informacijos, laikoma, kad konfidencialios informacijos tiekėjo pasiūlyme nėra. Vadovaujantis Informacijos viešinimo Centrinėje viešųjų pirkimų informacinėje sistemoje tvarkos aprašu, patvirtintu Viešųjų pirkimų tarnybos direktoriaus 2017 m. birželio 19 d. įsakymu Nr. 1S-91 „Dėl Informacijos viešinimo Centrinėje viešųjų pirkimų informacinėje sistemoje tvarkos aprašo patvirtinimo“, perkančioji organizacija laimėjusio dalyvio pasiūlymą, išskyrus informaciją, kurią tiekėjas nurodė kaip konfidencialią, paskelbs CVP IS."]
[]
["Pasiūlymo galiojimo užtikrinimui pateikiame (jei taikoma):"]
[]
["(Nurodyti užtikrinimo būdą, dydį, dokumentus)"]
[]
[]
["Tiekėjo arba jo įgalioto asmens pareigų pavadinimas:",null,null,null,"Projektų vadovė"]
[]
[]
["Pasirašančio asmens vardas ir pavardė:",null,null,null,"Odeta Raklevičienė"]
[]
[]
[]
[]
[]
[]
[]
[]
[]
[]
[]
[]
[]
[]
[]
[]
[]
[]
[]
[]
[]
[]
[]
[]
[]
[]
[]
[]
[]
[]
[]
[]
[]
[]
[]
[]
[]
[]
[]
[]
[]
[]
[]
[]
[]
[]
[]
[]
[]
[]
[]
[]
[]
[]
[]
[]
[]
[]
[]
[]
[]
[]
[]
[]
[]
[]
[]
["4390 2020-07-23 13:39:41"]